fUSD/lending_fUSD_20240508
["ID","MTS","AMOUNT","RATE_DAILY","PERIOD"]
[326629492,1715164251683,-4594.76,0.00027397,2]
[326629494,1715164251692,-3081.59,0.00027397,2]
[326629496,1715164251702,-500.0,0.00027397,2]
[326629498,1715164251711,-2951.39,0.00027397,2]
[326629500,1715164251720,-500.0,0.00027397,2]
[326629502,1715164251729,-909.81,0.00027397,2]
[326629504,1715164251739,-500.0,0.00027397,2]
[326629506,1715164251748,-500.0,0.00027397,2]
[326629508,1715164251757,-500.0,0.00027397,2]
[326629510,1715164251766,-988.0,0.00027397,4]
[326629512,1715164251775,-500.0,0.00027397,2]
[326629514,1715164251784,-500.0,0.00027397,2]
[326629516,1715164251793,-1670.64,0.00027397,2]
[326629518,1715164251802,-590.27,0.00027397,2]
[326629520,1715164251812,-283.18274938,0.00027397,2]
[326629522,1715164251821,-500.0,0.00027397,2]
[326629523,1715164251831,-500.0,0.00027397,2]
[326629524,1715164251840,-561.01,0.00027397,2]
[326629525,1715164251849,-4016.17,0.00027397,2]
[326629526,1715164251859,-500.0,0.00027397,2]
[326629527,1715164251868,-500.0,0.00027397,2]
[326629528,1715164251877,-500.0,0.00027397,2]
[326629529,1715164251886,-613.55999999,0.00027397,2]
[326629530,1715164251896,-500.0,0.00027397,2]
[326629531,1715164251905,-150.0,0.00027397,2]
[326629532,1715164251915,-163.83,0.000274,2]
[326629533,1715164251924,-151.85369651,0.00027443,2]
[326629534,1715164251933,-160.621266,0.00027545,2]
[326629535,1715164251943,-1180.55,0.00027945,7]
[326629536,1715164251952,-500.0,0.00027945,7]
[326629537,1715164251962,-528.46,0.00027945,7]
[326629538,1715164251971,-500.0,0.00027945,7]
[326629539,1715164251980,-713.76,0.00027945,7]
[326629540,1715164251990,-2488.66,0.00027945,7]
[326629541,1715164252000,-500.0,0.00027945,7]
[326629542,1715164252010,-500.0,0.00027945,7]
[326629543,1715164252019,-699.73,0.00027945,7]
[326629544,1715164252028,-500.0,0.00027945,7]
[326629545,1715164252038,-500.0,0.00027945,7]
[326629546,1715164252047,-500.0,0.00027945,7]
[326629547,1715164252056,-411.78,0.00027945,7]
[326629548,1715164252065,-561.73,0.00027945,7]
[326629549,1715164252074,-4594.76,0.00027945,7]
[326629550,1715164252083,-3081.59,0.00027945,7]
[326629551,1715164252093,-579.96225942,0.00027945,7]
[326629552,1715164252102,-2951.39,0.00027945,7]
[326629553,1715164252111,-500.0,0.00027945,7]
[326629554,1715164252121,-909.81,0.00027945,7]
[326629555,1715164252130,-500.0,0.00027945,7]
[326629556,1715164252139,-500.0,0.00027945,2]
[326629557,1715164252149,-565.47,0.00027945,7]
[326629558,1715164252160,-500.0,0.00027945,7]
[326629559,1715164252169,-381.82839195,0.00027945,7]
[326629560,1715164252178,-1670.64,0.00027945,7]
[326629561,1715164252187,-590.27,0.00027945,7]
[326629562,1715164252197,-500.0,0.00027945,7]
[326629563,1715164252206,-561.01,0.00027945,7]
[326629564,1715164252216,-4016.17,0.00027945,7]
[326629565,1715164252227,-150.0,0.00028118,2]
[326629566,1715164252238,-2400.59866527,0.00028223,2]
[326629567,1715164252247,-210.68479937,0.00028342,2]
[326629568,1715164252257,-1180.55,0.00028493,7]
[326629569,1715164252267,-500.0,0.00028493,7]
[326629570,1715164252277,-528.46,0.00028493,7]
[326629571,1715164252286,-500.0,0.00028493,7]
[326629572,1715164252295,-713.76,0.00028493,7]
[326629573,1715164252305,-2488.66,0.00028493,7]
[326629574,1715164252314,-160.56,0.00028493,7]
[326629575,1715164252323,-699.73,0.00028493,7]
[326629576,1715164252333,-500.0,0.00028493,7]
[326629577,1715164252343,-500.0,0.00028493,7]
[326629578,1715164252352,-500.0,0.00028493,7]
[326629579,1715164252362,-561.73,0.00028493,7]
[326629580,1715164252375,-4594.76,0.00028493,7]
[326629581,1715164252385,-3081.59,0.00028493,7]
[326629582,1715164252394,-2951.39,0.00028493,7]
[326629583,1715164252404,-500.0,0.00028493,7]
[326629584,1715164252414,-909.81,0.00028493,7]
[326629585,1715164252424,-500.0,0.00028493,7]
[326629586,1715164252434,-270.47,0.00028493,2]
[326629587,1715164252443,-500.0,0.00028493,7]
[326629588,1715164252455,-1670.64,0.00028493,7]
[326629589,1715164252464,-590.27,0.00028493,7]
[326629590,1715164252474,-331.07,0.00028493,7]
[326629591,1715164252483,-4016.17,0.00028493,7]
[326629592,1715164252492,-561.01,0.00028493,7]
[326629593,1715164252503,-183602.85523969,0.00028511,5]
[326629594,1715164252516,-661.3131406,0.00028511,5]
[326629595,1715164280817,-500.0,0.00017259,2]
[326629614,1715165432638,-217.09655827,0.00012899,2]
[326629616,1715165432648,-201.24213219,0.000129,2]
[326629617,1715165432658,-399.74844167,0.000129,2]
[326629618,1715165432667,-310.21241604,0.000129,2]
[326629620,1715165432676,-150.0,0.00012989,2]
[326629622,1715165432685,-165.17255466,0.0001299,2]
[326629624,1715165432694,-151.71,0.0001299,2]
[326629626,1715165432703,-151.71,0.0001299,2]
[326629628,1715165432712,-151.71,0.0001299,2]
[326629630,1715165432721,-33.51861757,0.0001299,2]
[326629631,1715165432732,-118.19138243,0.0001299,2]
[326629632,1715165432742,-151.71,0.0001299,2]
[326629633,1715165432756,-151.71,0.0001299,2]
[326629634,1715165432766,-151.71,0.0001299,2]
[326629635,1715165432777,-76.67861757,0.0001299,2]
[326629636,1715165432791,-75.03138243,0.0001299,2]
[326629637,1715165432800,-593.07061807,0.00013,2]
[326629638,1715165432811,-2870.0948315,0.00013,2]
[326629639,1715165432825,-24368.79136036,0.00013,2]
[326629641,1715165434233,-24437.9834467,0.00013,2]
[326629643,1715165434245,-9015.98876682,0.00013,2]
[326629672,1715165439385,-28732.27341271,0.00013,2]
[326629677,1715165439396,-20437.45957246,0.00013,2]
[326629680,1715165439407,-1604.91099983,0.00013,2]
[326629683,1715165439419,-2892820.48387729,0.00013,2]
[326629687,1715165439430,-1027704.55799199,0.00013,2]
[326629693,1715165439441,-4852.6012,0.00013,2]
[326629698,1715165439452,-626.47,0.00013,2]
[326629702,1715165439463,-17936.93518799,0.00013,2]
[326629739,1715165446635,-1641.30252,0.00013,2]
[326629745,1715165446647,-303.27304,0.00013,2]
[326629751,1715165446659,-35284.18522708,0.00013,2]
[326629753,1715165446671,-774.040005,0.00013,2]
[326629756,1715165446685,-2920.77516636,0.00013,2]
[326629759,1715165446696,-197158.83212694,0.00013,2]
[326629761,1715165446707,-790.12443875,0.00013,2]
[326629763,1715165446719,-18781.7991,0.00013,2]
[326629765,1715165446730,-629.27928532,0.00013,2]
[326629767,1715165446741,-392.68632983,0.00013,2]
[326629769,1715165446757,-687.24953363,0.00013,2]
[326629771,1715165446769,-431.96925012,0.00013,2]
[326629772,1715165446780,-1006.8,0.00013,2]
[326629773,1715165446795,-24134.82427014,0.00013,2]
[326629774,1715165446806,-329.17,0.00013,2]
[326629775,1715165446818,-1732.275,0.00013,2]
[326629776,1715165446831,-255.5202649,0.00013,2]
[326629778,1715165446844,-19041.96657256,0.00013,2]
[326629780,1715165446856,-451.45712628,0.00013,2]
[326629783,1715165446867,-650.65,0.00013,2]
[326629785,1715165446879,-47122.86257173,0.00013,2]
[326629787,1715165446888,-329.65099711,0.00013,2]
[326629789,1715165446897,-188.70189088,0.00013,2]
[326629791,1715165446907,-37849.19871023,0.00013,2]
[326629793,1715165446918,-438275.66176176,0.00013,2]
[326629795,1715165446929,-46531.87795766,0.00013,2]
[326629797,1715165446940,-460199.81951306,0.00013,2]
[326629799,1715165446951,-508.1055248,0.00013,2]
[326629801,1715165446963,-6517.21070001,0.00013,2]
[326629802,1715165446975,-463.3999995,0.00013,2]
[326629803,1715165446986,-5242.66104467,0.00013,2]
[326629804,1715165447517,-5893.04789687,0.00013,2]
[326629807,1715165447528,-1892.56313245,0.00013,2]
[326629809,1715165447539,-1439.08969512,0.00013,2]
[326629811,1715165447551,-51776.83693162,0.00013,2]
[326629814,1715165447562,-3856.3448,0.00013,2]
[326629817,1715165447573,-926.12701985,0.00013,2]
[326629865,1715166636873,-9863.14605274,0.00012643,2]
[326629867,1715166636883,-217.09655827,0.00012643,2]
[326629869,1715166636893,-3500.94133622,0.00012644,2]
[326629871,1715166636904,-150.0,0.00012798,2]
[326629874,1715166636914,-1561.86172371,0.00012809,2]
[326629878,1715166636924,-1821.2200304,0.00012898,2]
[326629882,1715166636934,-51465.6852,0.00012899,2]
[326629885,1715166636944,-343.85597693,0.00012995,2]
[326629888,1715166636955,-377.23070273,0.00012995,2]
[326629891,1715166636965,-66247.75502105,0.00012996,2]
[326629893,1715166636977,-732.11112739,0.00012996,2]
[326629895,1715166636989,-626.64639647,0.00012996,2]
[326629897,1715166637000,-92937.34979827,0.00012996,2]
[326629899,1715166637010,-3907.47101622,0.00012998,2]
[326629901,1715166637020,-1211.9967146,0.00012998,2]
[326629903,1715166637029,-521.73158779,0.00012998,2]
[326629905,1715166637039,-308.13408762,0.00012998,2]
[326629907,1715166637048,-156.0475967,0.00012998,2]
[326629909,1715166637058,-155.0,0.00012998,2]
[326629911,1715166637067,-1061.82742862,0.00012998,2]
[326629913,1715166637079,-405.26692787,0.00012998,2]
[326629915,1715166637089,-158.30475424,0.00012998,2]
[326629917,1715166637099,-1284.66138611,0.00012998,2]
[326629919,1715166637109,-155.0,0.00012998,2]
[326629921,1715166637118,-175.47369555,0.00012998,2]
[326629923,1715166637128,-3084.72177879,0.00012998,2]
[326629925,1715166637141,-155.0,0.00012998,2]
[326629927,1715166637150,-2854.68,0.00012998,2]
[326629929,1715166637160,-499.99,0.00012998,2]
[326629931,1715166637170,-2360.88589892,0.00012999,2]
[326629933,1715166637180,-87028.44003349,0.00013,2]
[326629935,1715166637190,-4309.18188136,0.00013,2]
[326629937,1715166637200,-311.34410862,0.00013,2]
[326629939,1715166637209,-298.56741175,0.00013,2]
[326629941,1715166637220,-1557.45369,0.00013,2]
[326629943,1715166637231,-192.0,0.00014078,2]
[326629945,1715166637240,-689.0,0.000156,2]
[326629947,1715166637249,-150.0,0.00015849,2]
[326629949,1715166637259,-2814.0,0.000159,2]
[326629951,1715166637268,-500.0,0.00016183,2]
[326629953,1715166637277,-642.57733329,0.0001621,2]
[326629955,1715166637287,-732.42,0.00016225,2]
[326629957,1715166637296,-165.76,0.000163,2]
[326629959,1715166637306,-302.68,0.0001631,2]
[326629961,1715166637315,-250.0,0.00016368,2]
[326629963,1715166637325,-1500.0,0.00016377,2]
[326629965,1715166637337,-1136.33,0.00016379,2]
[326629967,1715166637346,-155.0638827,0.00016492,2]
[326629969,1715166637356,-165.30353314,0.00016749,2]
[326629971,1715166637365,-154.54111,0.00016893,2]
[326629973,1715166637374,-567.82929439,0.00017,2]
[326629975,1715166637383,-155.24931679,0.00017257,2]
[326629977,1715166637393,-788.28581066,0.00017257,2]
[326629979,1715166637402,-3415.0326858,0.00017258,2]
[326629981,1715166637412,-37432.17503197,0.00017259,2]
[326629983,1715166637426,-1037.87625114,0.00017259,2]
[326629985,1715166637435,-289.59,0.00017658,2]
[326629987,1715166637445,-967.57,0.00017658,2]
[326629989,1715166637454,-10816.09,0.00017658,2]
[326629991,1715166637463,-200.0,0.00017671,2]
[326629993,1715166637473,-213.06,0.00017687,2]
[326629995,1715166637482,-156.09725218,0.00017722,2]
[326629997,1715166637491,-1039.86,0.00017831,2]
[326629999,1715166637500,-2565.12363365,0.0001788,2]
[326630001,1715166637510,-2565.12363364,0.0001788,2]
[326630003,1715166637519,-728.1030474,0.0001788,2]
[326630005,1715166637532,-728.10304739,0.0001788,2]
[326630007,1715166637543,-1557.45369,0.00018,2]
[326630009,1715166637552,-165.28,0.00018049,2]
[326630011,1715166637562,-225.51,0.00018066,2]
[326630013,1715166637571,-200.0,0.00018135,2]
[326630015,1715166637583,-155.41486429,0.00018176,2]
[326630017,1715166637592,-2565.12363364,0.00018454,2]
[326630019,1715166637601,-728.10304739,0.00018454,2]
[326630021,1715166637610,-800.0,0.00018466,2]
[326630023,1715166637620,-157.95,0.00018598,2]
[326630025,1715166637629,-355.18,0.00018641,2]
[326630027,1715166637639,-154.54111,0.00018926,2]
[326630029,1715166637648,-3410.23945662,0.00019,2]
[326630041,1715166637758,-1589.76054338,0.00019,2]
[326630043,1715166637768,-155.0,0.00019,2]
[326630045,1715166637777,-162.64,0.00019178,2]
[326630046,1715166637787,-331.81,0.00019178,2]
[326630047,1715166637796,-800.0,0.00019178,2]
[326630048,1715166637806,-156.27,0.00019178,2]
[326630049,1715166637815,-155.12,0.00019178,2]
[326630050,1715166637825,-3876.54489169,0.000192,2]
[326630051,1715166637836,-154.54111,0.00019256,2]
[326630052,1715166637846,-154.54111,0.0001947,2]
[326630053,1715166637855,-154.54111,0.00019696,2]
[326630054,1715166637865,-158.37392983,0.00019931,2]
[326630055,1715166637874,-6231.35798858,0.0002,2]
[326630056,1715166637883,-358.55644255,0.0002,2]
[326630057,1715166637892,-155.0,0.0002,2]
[326630058,1715166637903,-1260.50255545,0.0002,2]
[326630059,1715166637912,-5179.40318608,0.0002,2]
[326630061,1715166637922,-861.15298336,0.0002,2]
[326630063,1715166637931,-1770.43044414,0.0002,2]
[326630065,1715166637940,-155.0,0.0002,2]
[326630067,1715166637950,-800.0,0.00020247,2]
[326630068,1715166637966,-1755.83232869,0.00020519,2]
[326630071,1715166637976,-158.37392983,0.00020925,2]
[326630072,1715166637985,-355.18,0.00020971,2]
[326630074,1715166637994,-716.19253075,0.00021,2]
[326630077,1715166638004,-493.73382194,0.00021,2]
[326630079,1715166638014,-153.32774758,0.00021193,2]
[326630081,1715166638024,-2565.12363364,0.00021232,2]
[326630083,1715166638034,-728.10304739,0.00021232,2]
[326630085,1715166638044,-180.6,0.00021273,2]
[326630087,1715166638055,-2602.28168975,0.0002156,2]
[326630089,1715166638064,-367.45,0.00021589,15]
[326630091,1715166638073,-6762.66945982,0.000219,2]
[326630093,1715166638084,-8839.25331019,0.000219,2]
[326630095,1715166638093,-170.97519332,0.000219,2]
[326630097,1715166638103,-155.26918767,0.000219,2]
[326630099,1715166638112,-169.7463935,0.000219,2]
[326630101,1715166638121,-500.0,0.000219,2]
[326630103,1715166638132,-2000.0,0.00021918,2]
[326630105,1715166638146,-250.0,0.00021918,2]
[326630107,1715166638155,-250.0,0.00021918,2]
[326630109,1715166638165,-154.54111,0.00021948,2]
[326630111,1715166638174,-151.73,0.0002199,2]
[326630113,1715166638183,-789.75703028,0.00021996,2]
[326630115,1715166638193,-370.19548805,0.00021996,2]
[326630117,1715166638202,-267.4272769,0.00021996,2]
[326630119,1715166638211,-155.0,0.00021996,2]
[326630121,1715166638223,-234.06613459,0.00022,2]
[326630123,1715166638232,-2215.11343661,0.00022,2]
[326630125,1715166638242,-252826.23538819,0.00022,2]
[326630127,1715166638254,-541.17696875,0.00022,2]
[326630129,1715166638265,-1616.31417857,0.00022,2]
[326630132,1715166638277,-7769.60922863,0.00022,2]
[326630134,1715166638288,-969.45652537,0.00022,2]
[326630136,1715166638300,-3367.93087916,0.00022,2]
[326630138,1715166638312,-1169.32315803,0.00022,2]
[326630140,1715166638323,-3834.88345,0.00022,2]
[326630142,1715166638337,-411.26103104,0.00022,2]
[326630145,1715166638348,-595.81774041,0.00022,2]
[326630147,1715166638359,-472.04,0.00022,2]
[326630149,1715166638370,-5813.684408,0.00022,2]
[326630151,1715166638381,-833.50211302,0.00022,2]
[326630153,1715166638392,-539.69020108,0.00022,2]
[326630155,1715166638403,-753.66321503,0.00022,2]
[326630430,1715166641160,-129221.99999986,0.00022,2]
[326630434,1715166641172,-6408.72869192,0.00022,2]
[326630438,1715166641184,-1690.000001,0.00022,2]
[326630441,1715166641195,-1306.14903882,0.00022,2]
[326630443,1715166641206,-1291.06,0.00022,2]
[326630445,1715166641218,-1511.30272506,0.00022,2]
[326630447,1715166641230,-53522.356669,0.00022,2]
[326630450,1715166641241,-18818.52960502,0.00022,2]
[326630452,1715166641254,-396.96657,0.00022,2]
[326630567,1715166647255,-805.32206592,0.00022,2]
[326630577,1715166647268,-1619.98735026,0.00022,2]
[326630583,1715166647280,-2996.78060953,0.00022,2]
[326630589,1715166647291,-673.42144252,0.00022,2]
[326630596,1715166647302,-430.83073242,0.00022,2]
[326630603,1715166647314,-512064.0000004,0.00022,2]
[326630608,1715166647325,-33246.75028233,0.00022,2]
[326630614,1715166647334,-546.4241888,0.00022,2]
[326630662,1715166647472,-154.54111,0.00022778,2]
[326630666,1715166647486,-154.54111,0.00022796,2]
[326630669,1715166647496,-306.28636194,0.00022836,2]
[326630672,1715166647505,-150.0,0.00022931,2]
[326630675,1715166647514,-150.0,0.00022931,2]
[326630678,1715166647524,-150.0,0.00022931,2]
[326630681,1715166647535,-2300.0,0.00022931,2]
[326630684,1715166647544,-1396.0,0.00022931,2]
[326630687,1715166647553,-971.0,0.00022931,2]
[326630690,1715166647562,-1786.0,0.00022931,2]
[326630692,1715166647572,-542.0,0.00022931,2]
[326630694,1715166647581,-1226.0,0.00022931,2]
[326630696,1715166647592,-312.787,0.00022931,2]
[326630698,1715166647601,-474.344,0.00022931,2]
[326630700,1715166647611,-808.0,0.00022931,2]
[326630702,1715166647620,-619.327,0.00022931,2]
[326630704,1715166647629,-425.705,0.00022931,2]
[326630706,1715166647639,-214.635,0.00022931,2]
[326630708,1715166647648,-154.806,0.00022931,2]
[326630710,1715166647657,-2479.961,0.00022931,2]
[326630712,1715166647667,-1567.228,0.00022931,2]
[326630714,1715166647676,-219.0,0.00022931,2]
[326630716,1715166647685,-448.756,0.00022931,2]
[326630718,1715166647695,-1664.127,0.00022931,2]
[326630720,1715166647704,-1155.342,0.00022931,2]
[326630722,1715166647713,-3151.0,0.00022931,2]
[326630723,1715166647723,-454.067,0.00022931,2]
[326630724,1715166647732,-323.366,0.00022931,2]
[326630725,1715166647742,-156.09725218,0.0002299,2]
[326630726,1715166647751,-1557.4537,0.00023,2]
[326630727,1715166647760,-157.81183128,0.00023081,2]
[326630728,1715166647770,-157.95,0.00023247,2]
[326630729,1715166647780,-355.18,0.00023301,2]
[326630730,1715166647790,-300.0,0.00023312,2]
[326630731,1715166647799,-8839.25331008,0.00023355,2]
[326630733,1715166647808,-2001.32534763,0.000234,2]
[326630735,1715166647818,-300.0,0.00023798,2]
[326630737,1715166647827,-1072.44064238,0.00024,2]
[326630739,1715166647836,-432.43230672,0.00024,2]
[326630741,1715166647846,-2565.12363364,0.0002401,2]
[326630743,1715166647856,-728.10304739,0.0002401,2]
[326630745,1715166647866,-1322.0,0.000242,2]
[326630747,1715166647875,-180.0,0.0002423,2]
[326630749,1715166647885,-300.0,0.00024294,2]
[326630751,1715166647895,-154.54111,0.00024378,2]
[326630753,1715166647905,-156.07730059,0.00024387,2]
[326630755,1715166647914,-154.54111,0.00024465,2]
[326630757,1715166647924,-500.0,0.000247,2]
[326630759,1715166647933,-8759.50900561,0.00024809,2]
[326630771,1715166648042,-79.74430447,0.00024809,2]
[326630773,1715166648052,-164.28504995,0.00024874,2]
[326630776,1715166648062,-100.68899657,0.00024886,2]
[326630778,1715166648074,-53.85211343,0.00024886,2]
[326630780,1715166648083,-252.99408657,0.0002499,2]
[326630782,1715166648096,-517.86230835,0.0002499,2]
[326630784,1715166648107,-338.72698102,0.0002499,2]
[326630786,1715166648118,-8032.03006416,0.0002499,2]
[326630788,1715166648127,-155.0,0.00025,2]
[326630790,1715166648136,-2219.11364841,0.00025,2]
[326630792,1715166648149,-471.76227117,0.00025,2]
[326630794,1715166648158,-5349.56561626,0.00025,2]
[326630797,1715166648169,-3132.65362,0.00025,2]
[326630799,1715166648181,-1222.471622,0.00025,2]
[326630801,1715166648192,-1908.97069,0.00025,2]
[326630803,1715166648204,-982.45050727,0.00025,2]
[326630805,1715166648216,-40.64695761,0.00025,2]
[326630807,1715166648226,-367.45,0.00025325,15]
[326630809,1715166648235,-331.81,0.00025379,2]
[326630811,1715166648246,-355.18,0.00025631,2]
[326630814,1715166648256,-154.54111,0.00025723,2]
[326630815,1715166648266,-158.37392983,0.00025751,2]
[326630817,1715166648275,-579.83,0.00025931,2]
[326630819,1715166648284,-988.0,0.00026027,2]
[326630821,1715166648293,-2594.62254224,0.00026264,2]
[326630824,1715166648304,-462.1772013,0.00026264,2]
[326630826,1715166648315,-2416.70863231,0.00026264,2]
[326630828,1715166648326,-463.26284,0.00026264,2]
[326630830,1715166648337,-376.69655341,0.00026264,2]
[326630832,1715166648350,-2525.78554082,0.00026264,2]
[326630834,1715166648360,-154.54111,0.00026408,2]
[326630836,1715166648369,-157.81183128,0.00026517,2]
[326630838,1715166648378,-213.06,0.0002653,2]
[326630840,1715166648389,-164.28504995,0.00026652,2]
[326630842,1715166648399,-158.37392983,0.00026721,2]
[326630844,1715166648408,-154.54111,0.00026743,2]
[326630846,1715166648417,-151.85369653,0.00026786,2]
[326630848,1715166648426,-2565.12363364,0.00026788,2]
[326630850,1715166648436,-728.10304739,0.00026788,2]
[326630852,1715166648445,-659.0,0.00026882,2]
[326630854,1715166648454,-517.0,0.00026882,2]
[326630856,1715166648464,-1741.42627628,0.00027,2]
[326630858,1715166648473,-6519.98893408,0.00027,2]
[326630860,1715166648482,-763.55604564,0.00027,2]
[326630862,1715166648492,-165.28,0.00027074,2]
[326630864,1715166648502,-154.54111,0.0002713,2]
[326630866,1715166648511,-659.0,0.0002716,2]
[326630868,1715166648521,-517.0,0.0002716,2]
[326630871,1715166648531,-562.502,0.00027199,2]
[326630873,1715166648543,-154.54111,0.00027219,2]
[326630875,1715166648552,-154.45797105,0.00027223,2]
[326630877,1715166648562,-154.54111,0.00027242,2]
[326630879,1715166648571,-500.0,0.00027397,2]
[326630881,1715166648580,-500.0,0.00027397,2]
[326630883,1715166648591,-301.90641716,0.00027397,2]
[326630885,1715166648611,-300.0,0.00027397,2]
[326630887,1715166648622,-233.05036375,0.00027397,2]
[326630889,1715166648634,-289.85082267,0.00027397,2]
[326630891,1715166648644,-500.0,0.00027397,2]
[326630893,1715166648654,-194.36379842,0.00027397,2]
[326630895,1715166648664,-132.29738356,0.00027397,2]
[326630897,1715166648676,-367.70261644,0.00027397,2]
[326630899,1715166648685,-631.32040075,0.00027397,2]
[326630902,1715166648696,-830.48959925,0.00027397,2]
[326630904,1715166648706,-381.94727529,0.00027397,2]
[326630906,1715166648717,-118.05272471,0.00027397,2]
[326630908,1715166648727,-591.53699786,0.00027397,2]
[326630910,1715166648737,-500.0,0.00027397,2]
[326630913,1715166648746,-500.0,0.00027397,2]
[326630916,1715166648756,-506.6635496,0.00027397,2]
[326630919,1715166648765,-500.99,0.00027397,2]
[326630921,1715166648775,-585.62495408,0.00027397,2]
[326630923,1715166648785,-500.0,0.00027397,2]
[326630925,1715166648795,-1032.98,0.00027397,2]
[326630927,1715166648805,-508.67706647,0.00027397,2]
[326630929,1715166648814,-190.92632934,0.00027397,2]
[326630931,1715166648823,-500.0,0.00027397,2]
[326630933,1715166648833,-458.73607793,0.00027397,2]
[326630935,1715166648846,-41.26392207,0.00027397,2]
[326630937,1715166648855,-500.0,0.00027397,2]
[326630939,1715166648864,-518.3,0.00027397,2]
[326630941,1715166648874,-500.0,0.00027397,2]
[326630943,1715166648883,-587.47,0.00027397,2]
[326630945,1715166648893,-500.0,0.00027397,2]
[326630947,1715166648902,-387.6682316,0.00027397,2]
[326630949,1715166648911,-500.0,0.00027397,2]
[326630951,1715166648920,-500.0,0.00027397,2]
[326630953,1715166648930,-336.77473893,0.00027397,2]
[326630954,1715166648939,-500.0,0.00027397,2]
[326630956,1715166648949,-3514.15,0.00027397,2]
[326630958,1715166648959,-500.0,0.00027397,2]
[326630960,1715166648969,-624.54,0.00027397,2]
[326630961,1715166648978,-500.0,0.00027397,2]
[326630963,1715166648987,-500.0,0.00027397,2]
[326630965,1715166648997,-2177.58,0.00027397,2]
[326630967,1715166649007,-500.0,0.00027397,2]
[326630969,1715166649015,-500.0,0.00027397,2]
[326630971,1715166649025,-500.0,0.00027397,2]
[326630972,1715166649034,-500.0,0.00027397,2]
[326630974,1715166649044,-500.0,0.00027397,2]
[326630976,1715166649053,-500.0,0.00027397,2]
[326630978,1715166649063,-612.26,0.00027397,2]
[326630980,1715166649072,-500.0,0.00027397,2]
[326630982,1715166649082,-500.0,0.00027397,2]
[326630983,1715166649091,-500.0,0.00027397,2]
[326630985,1715166649100,-500.0,0.00027397,2]
[326630987,1715166649109,-500.0,0.00027397,2]
[326630989,1715166649119,-500.0,0.00027397,2]
[326630990,1715166649127,-265.2834409,0.00027397,2]
[326631027,1715167843119,-217.09655827,0.00011999,2]
[326631029,1715167843132,-208.57741257,0.00012,2]
[326631031,1715167843144,-330.59891273,0.00012768,2]
[326631034,1715167843157,-651.066337,0.00012768,2]
[326631036,1715167843167,-159.99035913,0.00012897,2]
[326631038,1715167843180,-260.34584177,0.00012897,2]
[326631040,1715167843190,-622.48513433,0.00012897,2]
[326631042,1715167843200,-2358.78776413,0.00012897,2]
[326631044,1715167843210,-150.0,0.00012897,2]
[326631046,1715167843220,-150.0,0.00012897,2]
[326631047,1715167843230,-1037.1469535,0.00014,2]
[326631048,1715167843240,-3032.0,0.000157,2]
[326631049,1715167843250,-156.09725218,0.00016268,2]
[326631050,1715167843259,-157.81183128,0.00016468,2]
[326631051,1715167843273,-499.99,0.0001726,2]
[326631052,1715167843282,-154.54111003,0.00017322,2]
[326631053,1715167843292,-154.54111004,0.00017845,2]
[326631054,1715167843302,-154.5676832,0.00018079,2]
[326631055,1715167843311,-5000.0,0.00019,2]
[326631056,1715167843320,-155.0,0.00019,2]
[326631057,1715167843330,-250.0,0.00019028,2]
[326631058,1715167843340,-252.23,0.00019028,2]
[326631059,1715167843349,-157.95,0.00019065,2]
[326631060,1715167843359,-187.92,0.00019121,2]
[326631061,1715167843369,-162.64,0.00019178,2]
[326631062,1715167843381,-1768.23,0.00019363,2]
[326631063,1715167843390,-725.4,0.00019367,2]